bitfinex/quotes_BTCUSD_20250703
["timestamp","ask_amount","ask_price","bid_price","bid_amount"]
[1751514254283,0.27580439,108950.0,108940.0,0.82989723]
[1751514259137,0.08856439,108950.0,108940.0,0.82989723]
[1751514259351,0.05776439,108950.0,108940.0,1.14955602]
[1751514259626,0.29084439,108950.0,108940.0,1.1278818]
[1751514260925,0.243052,108950.0,108940.0,1.22064188]
[1751514261379,0.243052,108950.0,108940.0,1.22982124]
[1751514261584,0.243052,108950.0,108940.0,1.22064188]
[1751514270497,0.243052,108950.0,108940.0,1.18974188]
[1751514272471,0.29084439,108950.0,108940.0,1.0969818]
[1751514273131,0.29084439,108950.0,108940.0,0.50496422]
[1751514273343,0.29084439,108950.0,108940.0,1.1124818]
[1751514273750,0.29084439,108950.0,108940.0,1.0969818]
[1751514275089,0.32164439,108950.0,108940.0,0.48946422]
[1751514275293,0.32164439,108950.0,108940.0,0.79322301]
[1751514276801,0.30634439,108950.0,108940.0,0.79322301]
[1751514277008,0.29084439,108950.0,108940.0,0.79322301]
[1751514277209,0.29084439,108950.0,108940.0,1.0969818]
[1751514292236,0.05776439,108950.0,108940.0,1.0969818]
[1751514296277,0.05776439,108950.0,108940.0,1.1132818]
[1751514296694,0.05776439,108950.0,108940.0,1.0969818]
[1751514298035,0.05776439,108950.0,108940.0,1.1286818]
[1751514298238,0.24484439,108950.0,108940.0,1.1286818]
[1751514298666,0.24484439,108950.0,108940.0,1.13786116]
[1751514299074,0.24484439,108950.0,108940.0,1.1286818]
[1751514300994,0.05776439,108950.0,108940.0,0.50586422]
[1751514301245,0.24480439,108950.0,108940.0,0.48946422]
[1751514301454,0.58146318,108950.0,108940.0,0.52618085]
[1751514301861,0.58146318,108950.0,108940.0,0.18618085]
[1751514302163,0.58146318,108950.0,108940.0,0.04111663]
[1751514302377,0.29605999,108950.0,108940.0,0.06864567]
[1751514302588,0.59981878,108950.0,108940.0,0.04111663]
[1751514302799,0.59981878,108950.0,108940.0,0.03911663]
[1751514303229,0.28688215,108950.0,108940.0,0.03911663]
[1751514303669,0.80174567,108950.0,108940.0,0.0024]
[1751514303879,0.70175755,108950.0,108940.0,0.0004]
[1751514304091,0.71093598,108950.0,108940.0,0.0004]
[1751514304765,0.71093666,108950.0,108940.0,0.0004]
[1751514305188,0.58157021,108950.0,108940.0,0.0004]
[1751514305614,0.886329,108950.0,108940.0,0.0004]
[1751514305845,0.87715065,108950.0,108940.0,0.0004]
[1751514306061,0.86797222,108950.0,108940.0,0.0004]
[1751514306276,0.86897222,108950.0,108940.0,0.0004]
[1751514306493,0.86797222,108950.0,108940.0,0.0004]
[1751514306717,0.87097222,108950.0,108940.0,0.0004]
[1751514306938,0.86997222,108950.0,108940.0,0.0004]
[1751514307412,0.87197222,108950.0,108940.0,0.0004]
[1751514308296,0.8627937,108950.0,108940.0,0.0004]
[1751514311099,0.55903491,108950.0,108940.0,0.0004]
[1751514311303,0.8627937,108950.0,108940.0,0.0004]
[1751514312585,0.55903491,108950.0,108940.0,0.0004]
[1751514312799,0.8627937,108950.0,108940.0,0.0004]
[1751514313699,0.55903491,108950.0,108940.0,0.0004]
[1751514313907,0.8627937,108950.0,108940.0,0.0004]
[1751514315255,0.8903897,108950.0,108940.0,0.0004]
[1751514325646,0.58663091,108950.0,108940.0,0.0004]
[1751514325846,0.8903897,108950.0,108940.0,0.0004]
[1751514331441,0.91242079,108950.0,108940.0,0.0004]
[1751514342181,0.91244244,108950.0,108940.0,0.0004]
[1751514346911,0.91044244,108950.0,108940.0,0.0004]
[1751514347310,0.91844244,108950.0,108940.0,0.0014]
[1751514351414,0.96488244,108950.0,108940.0,0.0014]
[1751514353509,0.93198244,108950.0,108940.0,0.0014]
[1751514357031,0.62822365,108950.0,108940.0,0.0014]
[1751514357250,0.6764497,108950.0,108940.0,0.0014]
[1751514359861,1.11382371,108950.0,108940.0,0.0014]
[1751514360071,1.09852371,108950.0,108940.0,0.0014]
[1751514360281,1.08292371,108950.0,108940.0,0.0014]
[1751514361135,1.08292825,108950.0,108940.0,0.0014]
[1751514361376,1.09812825,108950.0,108940.0,0.0014]
[1751514363332,1.11462825,108950.0,108940.0,0.0014]
[1751514368889,1.09812825,108950.0,108940.0,0.0014]
[1751514370754,1.11382825,108950.0,108940.0,0.0014]
[1751514373469,1.08292825,108950.0,108940.0,0.0014]
[1751514374846,1.09872825,108950.0,108940.0,0.0014]
[1751514377256,1.08292825,108950.0,108940.0,0.0014]
[1751514379186,0.77916946,108950.0,108940.0,0.0014]
[1751514379398,1.08292825,108950.0,108940.0,0.0014]
[1751514383767,1.11432825,108950.0,108940.0,0.0014]
[1751514384180,1.09932825,108950.0,108940.0,0.0014]
[1751514384598,1.08292825,108950.0,108940.0,0.0014]
[1751514392474,0.77916946,108950.0,108940.0,0.0014]
[1751514392675,1.08292825,108950.0,108940.0,0.0014]
[1751514395309,0.84840825,108950.0,108940.0,0.0014]
[1751514395520,1.08188825,108950.0,108940.0,0.0014]
[1751514396974,0.77812946,108950.0,108940.0,0.0014]
[1751514397222,1.08188825,108950.0,108940.0,0.0014]
[1751514399965,1.08188825,108950.0,108940.0,0.0174]
[1751514408707,1.05983097,108950.0,108940.0,0.0174]
[1751514408858,1.08188669,108950.0,108940.0,0.0174]
[1751514415036,1.08188669,108950.0,108940.0,0.0014]
[1751514415787,1.08189137,108950.0,108940.0,0.0014]
[1751514425649,0.77813258,108950.0,108940.0,0.0014]
[1751514425858,1.08189137,108950.0,108940.0,0.0174]
[1751514428410,1.08189137,108950.0,108940.0,0.0014]
[1751514438262,1.08169137,108950.0,108940.0,0.0014]
[1751514439780,1.05409537,108950.0,108940.0,0.0014]
[1751514442834,1.08169237,108950.0,108940.0,0.0014]
[1751514450151,2.0390756,108950.0,108940.0,0.0014]
[1751514450377,2.09032759,108950.0,108940.0,0.0014]
[1751514451204,2.12704461,108950.0,108940.0,0.0014]
[1751514454143,1.31386745,108950.0,108940.0,0.0014]
[1751514454353,1.31386745,108950.0,108940.0,0.0164]
[1751514454567,1.31386745,108950.0,108940.0,0.0324]
[1751514456725,1.31386745,108950.0,108940.0,0.0164]
[1751514462652,1.31386745,108950.0,108940.0,0.0014]
[1751514467686,0.96791231,108950.0,108940.0,0.0326]
[1751514467902,1.2716711,108950.0,108940.0,0.0326]
[1751514468206,0.96791231,108950.0,108940.0,0.0326]
[1751514468411,1.2716711,108950.0,108940.0,0.0326]
[1751514469599,0.96791231,108950.0,108940.0,0.0326]
[1751514469796,1.2716711,108950.0,108940.0,0.0326]
[1751514470206,1.0385111,108950.0,108940.0,0.0168]
[1751514470429,0.96787231,108950.0,108940.0,0.0168]
[1751514470601,1.57538989,108950.0,108940.0,0.0168]
[1751514471417,1.57538989,108950.0,108940.0,0.0014]
[1751514472681,1.57538989,108950.0,108940.0,0.0165]
[1751514473154,1.2716311,108950.0,108940.0,0.0165]
[1751514474918,1.2992066,108950.0,108940.0,0.0014]
[1751514475121,0.99544781,108950.0,108940.0,0.0014]
[1751514475488,1.2992066,108950.0,108940.0,0.0014]
[1751514476846,1.60296539,108950.0,108940.0,0.0014]
[1751514477048,0.99544781,108950.0,108940.0,0.0014]
[1751514477424,1.2992066,108950.0,108940.0,0.0014]
[1751514479260,1.5198066,108950.0,108940.0,0.0014]
[1751514484442,1.5198066,108950.0,108940.0,0.032]
[1751514492074,1.5198066,108950.0,108940.0,0.0165]
[1751514493437,1.5198066,108950.0,108940.0,0.0014]
[1751514495293,1.83810624,108950.0,108940.0,0.0014]
[1751514495563,1.94284559,108950.0,108940.0,0.0014]
[1751514495772,2.02956261,108950.0,108940.0,0.0014]
[1751514495993,2.17946388,108950.0,108940.0,0.0014]
[1751514496946,2.15188838,108950.0,108940.0,0.0014]
[1751514497159,2.1810567,108950.0,108940.0,0.0014]
[1751514498536,2.2778167,108950.0,108940.0,0.0014]
[1751514498870,2.1810567,108950.0,108940.0,0.0014]
[1751514500279,2.2086094,108950.0,108940.0,0.0014]
[1751514501129,2.20859141,108950.0,108940.0,0.0014]
[1751514515654,2.18103857,108950.0,108940.0,0.0014]
[1751514516714,2.2361141,108950.0,108940.0,0.0014]
[1751514524982,2.2196141,108950.0,108940.0,0.0014]
[1751514527228,2.2036141,108950.0,108940.0,0.0014]
[1751514530522,2.2865141,108950.0,108940.0,0.0014]
[1751514530756,2.24979708,108950.0,108940.0,0.0014]
[1751514531295,2.23329708,108950.0,108940.0,0.0014]
[1751514531728,2.21689708,108950.0,108940.0,0.0014]
[1751514537512,2.16689708,108950.0,108940.0,0.0014]
[1751514537725,2.21689708,108950.0,108940.0,0.0014]
[1751514538829,2.16689708,108950.0,108940.0,0.0014]
[1751514539159,2.21689708,108950.0,108940.0,0.0014]
[1751514542164,2.16689708,108950.0,108940.0,0.0014]
[1751514542364,2.21689708,108950.0,108940.0,0.0014]
[1751514545571,7.55215587,108950.0,108940.0,0.0014]
[1751514545801,7.49708034,108950.0,108940.0,0.0014]
[1751514547499,0.87153798,108940.0,108930.0,0.07298937]
[1751514547747,2.26167368,108940.0,108930.0,0.07298937]
[1751514548294,2.28927968,108940.0,108930.0,0.07298937]
[1751514548919,7.27397968,108940.0,108930.0,0.07298937]
[1751514549125,7.25747968,108940.0,108930.0,0.07298937]
[1751514549767,7.42642265,108940.0,108930.0,0.001]
[1751514549970,0.19814499,108930.0,108920.0,0.0004]
[1751514550175,1.29022073,108920.0,108910.0,0.10438937]
[1751514550379,1.63790308,108920.0,108910.0,0.11300008]
[1751514551358,1.66550808,108920.0,108910.0,0.11400008]
[1751514552834,1.67050808,108920.0,108910.0,0.11500008]
[1751514553858,1.89118808,108920.0,108910.0,0.11500008]
[1751514556786,1.29273786,108920.0,108910.0,0.11500008]
[1751514557078,1.90025544,108920.0,108910.0,0.11500008]
[1751514558233,1.90025544,108920.0,108910.0,0.10638937]
[1751514558433,1.90025544,108920.0,108910.0,0.11499483]
[1751514570905,1.90013544,108920.0,108910.0,0.11499483]
[1751514574527,1.90013544,108920.0,108910.0,0.04200546]
[1751514575329,1.92768818,108920.0,108910.0,0.04200546]
[1751514581799,1.74068818,108920.0,108910.0,0.04200546]
[1751514582001,1.92768818,108920.0,108910.0,0.04200546]
[1751514584862,1.92768818,108920.0,108910.0,0.01100546]
[1751514585049,1.3201706,108920.0,108910.0,0.01100546]
[1751514585482,1.92768818,108920.0,108910.0,0.01100546]
[1751514586250,1.92768818,108920.0,108910.0,0.01101845]
[1751514589573,2.14002142,108920.0,108910.0,0.01101845]
[1751514591382,2.6835456,108920.0,108910.0,0.01101845]
[1751514591896,2.37978681,108920.0,108910.0,0.01101845]
[1751514592319,2.65599286,108920.0,108910.0,0.01101845]
[1751514594149,2.65099286,108920.0,108910.0,0.00901845]
[1751514594343,2.35023407,108920.0,108910.0,0.0004]
[1751514595113,2.65399286,108920.0,108910.0,0.0004]
[1751514595257,2.68168765,108920.0,108910.0,0.0004]
[1751514595464,2.70924386,108920.0,108910.0,0.0004]
[1751514595745,2.71424386,108920.0,108910.0,0.0014]
[1751514596570,2.71424386,108920.0,108900.0,0.0004]
[1751514596776,1.48414801,108910.0,108900.0,0.0004]
[1751514596976,1.53202896,108910.0,108900.0,0.0004]
[1751514597391,1.62150828,108910.0,108900.0,0.0004]
[1751514598003,1.76535466,108910.0,108900.0,0.00900987]
[1751514598212,1.76535466,108910.0,108900.0,0.0004]
[1751514598800,1.80209165,108910.0,108900.0,0.0004]
[1751514599445,1.76535466,108910.0,108900.0,0.0004]
[1751514601009,1.76531626,108910.0,108900.0,0.0004]
[1751514601305,1.76531626,108910.0,108900.0,0.0014]
[1751514601528,1.76531626,108910.0,108900.0,0.0004]
[1751514601968,1.77131626,108910.0,108900.0,0.0014]
[1751514602197,1.79840978,108910.0,108900.0,0.0014]
[1751514603362,7.15216857,108910.0,108900.0,0.0014]
[1751514603590,7.16137218,108910.0,108900.0,0.0014]
[1751514604293,6.60411,108900.0,108890.0,0.0004]
[1751514604514,7.03532816,108900.0,108890.0,0.0004]
[1751514604969,7.06294516,108900.0,108890.0,0.0004]
[1751514605405,7.09443739,108900.0,108890.0,0.0004]
[1751514605852,7.09943739,108900.0,108890.0,0.0004]
[1751514607294,7.46194516,108900.0,108890.0,0.0004]
[1751514608125,2.46194516,108900.0,108890.0,0.0004]
[1751514608345,7.48941221,108900.0,108890.0,0.0004]
[1751514609221,7.46194516,108900.0,108890.0,0.0004]
[1751514609434,7.48940563,108900.0,108890.0,0.0004]
[1751514610709,1.5118088,108880.0,108870.0,0.08908937]
[1751514610897,1.83732888,108880.0,108870.0,0.08908937]
[1751514611600,1.8941152,108880.0,108870.0,0.07338937]
[1751514611809,1.8941152,108880.0,108870.0,0.0004]
[1751514612022,1.8981152,108880.0,108870.0,0.0004]
[1751514612235,1.8981152,108880.0,108870.0,0.0014]
[1751514612444,1.92007427,108880.0,108870.0,0.0014]
[1751514612686,2.01283435,108880.0,108870.0,0.0014]
[1751514616202,2.04433435,108880.0,108870.0,0.0014]
[1751514617905,2.09433435,108880.0,108870.0,0.0014]
[1751514618639,2.39809314,108880.0,108870.0,0.0014]
[1751514619019,7.39809314,108880.0,108870.0,0.0014]
[1751514620072,7.36892482,108880.0,108870.0,0.0014]
[1751514620529,7.39638529,108880.0,108870.0,0.0014]
[1751514621604,7.42555361,108880.0,108870.0,0.0014]
[1751514621811,7.47555361,108880.0,108870.0,0.0014]
[1751514622019,7.51222493,108880.0,108870.0,0.0014]
[1751514624703,2.51222493,108880.0,108870.0,0.0014]
[1751514625116,7.51222493,108880.0,108870.0,0.0014]
[1751514625319,7.53931845,108880.0,108870.0,0.0014]
[1751514626336,7.51185798,108880.0,108870.0,0.0014]
[1751514627868,7.46886446,108880.0,108870.0,0.0014]
[1751514628316,6.91674567,108880.0,108870.0,0.0014]
[1751514628518,7.12037735,108880.0,108870.0,0.0014]
[1751514629438,7.17550593,108880.0,108870.0,0.0014]
[1751514631971,6.94270593,108880.0,108870.0,0.0014]
[1751514632181,7.17550593,108880.0,108870.0,0.018]
[1751514632390,7.17550593,108880.0,108870.0,0.034]
[1751514632810,6.56798835,108880.0,108870.0,0.034]
[1751514633016,7.17550593,108880.0,108870.0,0.034]
[1751514633817,7.17550593,108880.0,108870.0,0.0014]
[1751514634786,7.17550593,108880.0,108870.0,0.017]
[1751514635257,7.47926472,108880.0,108870.0,0.017]
[1751514636107,7.47926472,108880.0,108870.0,0.0014]
[1751514636315,7.4425934,108880.0,108870.0,0.0014]
[1751514636729,7.6633934,108880.0,108870.0,0.0014]
[1751514638058,7.6633934,108880.0,108870.0,0.0171]
[1751514639646,1.59604823,108880.0,108870.0,0.0327]
[1751514639829,2.19843723,108880.0,108870.0,0.0327]
[1751514640366,2.17596051,108880.0,108870.0,0.0327]
[1751514642111,1.99316051,108880.0,108870.0,0.0327]
[1751514642320,1.99316051,108880.0,108870.0,0.04991999]
[1751514642321,2.13926923,108880.0,108870.0,0.04991999]
[1751514642521,2.23202931,108880.0,108870.0,0.04991999]
[1751514643039,2.13926923,108880.0,108870.0,0.04991999]
[1751514643692,1.90646923,108880.0,108870.0,0.04991999]
[1751514643919,2.13926923,108880.0,108870.0,0.04991999]
[1751514644270,2.13926923,108880.0,108870.0,0.04991985]
[1751514645530,1.53175165,108880.0,108870.0,0.04991985]
[1751514645724,2.13926923,108880.0,108870.0,0.04991985]
[1751514646372,2.13926923,108880.0,108870.0,0.0327]
[1751514646590,2.13926923,108880.0,108870.0,0.04992089]
[1751514647492,2.13926923,108880.0,108870.0,0.0327]
[1751514647709,0.84658056,108880.0,108870.0,0.04992118]
[1751514647900,1.04276473,108880.0,108870.0,0.04992118]
[1751514648117,1.33736865,108880.0,108870.0,0.04992118]
[1751514648985,1.32818491,108880.0,108870.0,0.04992118]
[1751514649813,1.51187337,108880.0,108870.0,0.04992118]
[1751514650013,1.31568937,108880.0,108870.0,0.04992118]
[1751514650222,1.30981658,108880.0,108870.0,0.04992118]
[1751514650548,1.319001,108880.0,108870.0,0.04992118]
[1751514651228,1.31900091,108880.0,108870.0,0.04992118]
[1751514653419,1.319001,108880.0,108870.0,0.04992118]
[1751514653971,1.31900091,108880.0,108870.0,0.0327]
[1751514655656,1.50268937,108880.0,108870.0,0.0327]
[1751514658480,1.19893058,108880.0,108870.0,0.0327]
[1751514658685,1.50268937,108880.0,108870.0,0.0327]
[1751514662514,1.49350529,108880.0,108870.0,0.0327]
[1751514667054,1.48432112,108880.0,108870.0,0.0327]
[1751514672480,1.18056233,108880.0,108870.0,0.0327]
[1751514672698,1.48432112,108880.0,108870.0,0.0327]
[1751514672909,1.48432112,108880.0,108870.0,0.04992751]
[1751514675259,1.48432112,108880.0,108870.0,0.04993068]
[1751514678028,1.48432112,108880.0,108870.0,0.0327]
[1751514679315,1.11363216,108880.0,108870.0,0.0327]
[1751514679518,1.31892041,108880.0,108870.0,0.0327]
[1751514679929,1.32810483,108880.0,108870.0,0.0327]
[1751514680202,1.32810474,108880.0,108870.0,0.0327]
[1751514681252,1.33728916,108880.0,108870.0,0.0327]
[1751514681873,1.32810474,108880.0,108870.0,0.0327]
[1751514682467,1.32810457,108880.0,108870.0,0.0327]
[1751514683086,1.33728899,108880.0,108870.0,0.0327]
[1751514686768,1.11648899,108880.0,108870.0,0.0327]
[1751514686976,1.10739144,108880.0,108870.0,0.0327]
[1751514687413,0.80363257,108880.0,108870.0,0.0327]
[1751514687649,1.10739136,108880.0,108870.0,0.0327]
[1751514687867,1.11657578,108880.0,108870.0,0.0327]
[1751514689046,0.56176832,108880.0,108870.0,0.0327]
[1751514689250,1.08526542,108880.0,108870.0,0.0327]
[1751514689452,1.10731136,108880.0,108870.0,0.0327]
[1751514691958,1.11649578,108880.0,108870.0,0.0327]
[1751514692856,1.10731136,108880.0,108870.0,0.0327]
[1751514694865,0.85634303,108880.0,108870.0,0.0327]
[1751514695077,1.08894303,108880.0,108870.0,0.0327]
[1751514695671,1.07975903,108880.0,108870.0,0.0327]
[1751514695805,1.08894303,108880.0,108870.0,0.0327]
[1751514696454,1.08890294,108880.0,108870.0,0.0327]
[1751514697723,1.09808702,108880.0,108870.0,0.0327]
[1751514697892,1.08890294,108880.0,108870.0,0.0327]
[1751514698218,1.09808694,108880.0,108870.0,0.0327]
[1751514701670,1.07046894,108880.0,108870.0,0.0327]
[1751514702217,0.50659841,108880.0,108870.0,0.33645879]
[1751514702442,0.72629621,108880.0,108870.0,0.33645879]
[1751514702660,0.74834207,108880.0,108870.0,0.33645879]
[1751514703293,0.51578207,108880.0,108870.0,0.33645879]
[1751514703491,0.72629613,108880.0,108870.0,0.33645879]
[1751514703729,0.74834207,108880.0,108870.0,0.33645879]
[1751514704593,0.73915841,108880.0,108870.0,0.33645879]
[1751514705062,0.16660206,108880.0,108870.0,0.33645879]
[1751514705299,0.37711247,108880.0,108870.0,0.33645879]
[1751514706033,0.37711247,108880.0,108870.0,0.35368752]
[1751514708156,0.37711247,108880.0,108870.0,0.33645879]
[1751514709376,0.14455247,108880.0,108870.0,0.33645879]
[1751514709580,0.28431239,108880.0,108870.0,0.64021758]
[1751514709990,0.05179239,108880.0,108870.0,0.83310817]
[1751514710207,0.28431239,108880.0,108870.0,0.84229326]
[1751514710413,0.28031239,108880.0,108870.0,0.84129326]
[1751514710614,0.28231239,108880.0,108870.0,0.84129326]
[1751514711026,0.28231239,108880.0,108870.0,0.84429326]
[1751514711530,0.28231239,108880.0,108870.0,0.84429335]
[1751514712055,0.28231239,108880.0,108870.0,0.85347844]
[1751514712381,0.28231239,108880.0,108870.0,0.84429335]
[1751514712583,0.28231239,108880.0,108870.0,0.54053456]
[1751514713470,0.28231239,108880.0,108870.0,0.53134938]
[1751514714860,0.28231239,108880.0,108870.0,0.54053456]
[1751514715324,0.28231239,108880.0,108870.0,0.53134938]
[1751514716224,0.28231239,108880.0,108870.0,0.34764405]
[1751514716426,0.28231239,108880.0,108870.0,0.33845879]
[1751514719638,0.28231239,108880.0,108870.0,0.0347]
[1751514719838,0.28231239,108880.0,108870.0,0.33845879]
[1751514733332,0.28231239,108880.0,108870.0,0.0347]
[1751514733574,0.28231239,108880.0,108870.0,0.33845879]
[1751514735316,0.28231239,108880.0,108870.0,0.0347]
[1751514735514,0.37507247,108880.0,108870.0,0.30715879]
[1751514738713,0.38425613,108880.0,108870.0,0.30715879]
[1751514738911,0.37507247,108880.0,108870.0,0.30715879]
[1751514740280,0.37507247,108880.0,108870.0,0.33945879]
[1751514740672,0.37507247,108880.0,108870.0,0.30715879]
[1751514745807,0.37507247,108880.0,108870.0,0.0034]
[1751514745984,0.37507247,108880.0,108870.0,0.30715879]
[1751514747365,0.37507247,108880.0,108870.0,0.0034]
[1751514747575,0.730199,108880.0,108870.0,0.0034]
[1751514747803,0.73019891,108880.0,108870.0,0.0034]
[1751514748002,0.73938291,108880.0,108870.0,0.0034]
[1751514748225,0.72819891,108880.0,108870.0,0.0034]
[1751514748424,0.9302563,108880.0,108870.0,0.0004]
[1751514748836,0.9332563,108880.0,108870.0,0.0014]
[1751514749589,0.74956775,108880.0,108870.0,0.0014]
[1751514750223,0.74038342,108880.0,108870.0,0.0014]
[1751514751345,0.73119925,108880.0,108870.0,0.0014]
[1751514751546,0.73119883,108880.0,108870.0,0.0014]
[1751514752710,0.73119875,108880.0,108870.0,0.0014]
[1751514752857,0.45649492,108880.0,108870.0,0.0014]
[1751514753062,0.38505613,108880.0,108870.0,0.30515879]
[1751514753306,0.39423996,108880.0,108870.0,0.30515879]
[1751514753575,0.38505613,108880.0,108870.0,0.30515879]
[1751514753906,0.40342387,108880.0,108870.0,0.30515879]
[1751514754364,0.39423987,108880.0,108870.0,0.30515879]
[1751514754568,0.4034237,108880.0,108870.0,0.30515879]
[1751514755034,0.4034237,108880.0,108870.0,0.0014]
[1751514755650,0.39423987,108880.0,108870.0,0.0014]
[1751514757871,0.39423987,108880.0,108870.0,0.30515879]
[1751514758594,0.40342378,108880.0,108870.0,0.0014]
[1751514758791,0.40342378,108880.0,108870.0,0.30515879]
[1751514759223,0.40342378,108880.0,108870.0,0.0014]
[1751514759224,0.70718257,108880.0,108870.0,0.0014]
[1751514759999,0.69799866,108880.0,108870.0,0.0014]
[1751514760202,0.39423987,108880.0,108870.0,0.0014]
[1751514760567,0.39423987,108880.0,108870.0,0.30515879]
[1751514761228,0.40342378,108880.0,108870.0,0.30515879]
[1751514761439,0.14355247,108880.0,108870.0,0.33545879]
[1751514761646,0.37587247,108880.0,108870.0,0.33545879]
[1751514762738,0.14355247,108880.0,108870.0,0.33545879]
[1751514762939,0.37587247,108880.0,108870.0,0.33545879]
[1751514763326,0.14355247,108880.0,108870.0,0.33545879]
[1751514763468,0.37587247,108880.0,108870.0,0.33545879]
[1751514765971,0.23747239,108880.0,108870.0,0.71220695]
[1751514766181,0.23747239,108880.0,108870.0,0.41763342]
[1751514766382,0.23747239,108880.0,108870.0,0.40844816]
[1751514766605,0.04779239,108880.0,108870.0,0.41763342]
[1751514766718,0.23443239,108880.0,108870.0,0.41763342]
[1751514766922,0.23443239,108880.0,108870.0,0.40744816]
[1751514767127,0.04979239,108880.0,108870.0,0.33445879]
[1751514767345,0.28023542,108880.0,108870.0,0.33745879]
[1751514772213,0.28023542,108880.0,108870.0,0.0337]
[1751514772629,0.3729955,108880.0,108870.0,0.30715879]
[1751514773464,0.3729955,108880.0,108870.0,0.33825879]
[1751514791742,0.3185955,108880.0,108870.0,0.33825879]
[1751514805203,0.3185955,108880.0,108870.0,0.0345]
[1751514805417,0.3185955,108880.0,108870.0,0.32245879]
[1751514812910,0.3185955,108880.0,108870.0,0.33805879]
[1751514813310,0.3185955,108880.0,108870.0,0.30715879]
[1751514820048,0.3185955,108880.0,108870.0,0.0034]
[1751514820272,0.3185955,108880.0,108870.0,0.30715879]
[1751514822863,0.3185955,108880.0,108870.0,0.33735879]
[1751514836773,0.32484008,108880.0,108870.0,0.33735879]
[1751514845862,0.32484008,108880.0,108870.0,0.0336]
[1751514846077,0.32484008,108880.0,108870.0,0.33735879]
[1751514847796,0.32524008,108880.0,108870.0,0.33735879]
[1751514848753,0.32524008,108880.0,108870.0,0.32215879]
[1751514851907,0.34134008,108880.0,108870.0,0.30715879]
[1751514852415,0.32524008,108880.0,108870.0,0.30715879]
[1751514855086,0.32524008,108880.0,108870.0,0.0034]
[1751514855294,0.32524008,108880.0,108870.0,0.30715879]
[1751514862836,0.09316008,108880.0,108870.0,0.32305879]
[1751514863081,0.32516008,108880.0,108870.0,0.33815879]
[1751514867862,0.32516008,108880.0,108870.0,0.30715879]
[1751514881125,0.32504008,108880.0,108870.0,0.30715879]
[1751514883167,0.36652374,108880.0,108870.0,0.0034]
[1751514883381,0.67028253,108880.0,108870.0,0.0034]
[1751514883626,1.00159356,108880.0,108870.0,0.0034]
[1751514883827,1.01077798,108880.0,108870.0,0.0034]
[1751514884288,0.33422374,108880.0,108870.0,0.0034]
[1751514884471,0.32504008,108880.0,108870.0,0.30715879]
[1751514885702,0.09316008,108880.0,108870.0,0.30715879]
[1751514885922,0.32504008,108880.0,108870.0,0.33905879]
[1751514887463,0.32504008,108880.0,108870.0,0.0353]
[1751514887807,0.32504008,108880.0,108870.0,0.0189]
[1751514888817,0.62879887,108880.0,108870.0,0.0034]
[1751514889171,0.67916644,108880.0,108870.0,0.0034]
[1751514889408,0.67916636,108880.0,108870.0,0.0034]
[1751514889884,0.66998253,108880.0,108870.0,0.0034]
[1751514890629,0.62879887,108880.0,108870.0,0.0034]
[1751514891469,0.66928261,108880.0,108870.0,0.0034]
[1751514895670,0.65358261,108880.0,108870.0,0.0034]
[1751514897151,0.63798261,108880.0,108870.0,0.0034]
[1751514898046,0.33422382,108880.0,108870.0,0.0034]
[1751514898232,0.63798261,108880.0,108870.0,0.0034]
[1751514898636,0.62879887,108880.0,108870.0,0.0034]
[1751514898842,0.6379827,108880.0,108870.0,0.0034]
[1751514899075,0.63798261,108880.0,108870.0,0.0034]
[1751514900999,0.62879887,108880.0,108870.0,0.0034]
[1751514901398,0.63798261,108880.0,108870.0,0.0034]
[1751514905571,0.65635052,108880.0,108870.0,0.0034]
[1751514905774,0.68725035,108880.0,108870.0,0.0034]
[1751514907621,0.65635035,108880.0,108870.0,0.0034]
[1751514908618,0.66553435,108880.0,108870.0,0.0034]
[1751514910483,0.65635035,108880.0,108870.0,0.0034]
[1751514910923,0.66553443,108880.0,108870.0,0.0034]
[1751514911548,0.68203443,108880.0,108870.0,0.0034]
[1751514911962,0.67285035,108880.0,108870.0,0.0034]
[1751514912382,0.68203443,108880.0,108870.0,0.0034]
[1751514912641,0.66553435,108880.0,108870.0,0.0034]
[1751514917260,0.67471852,108880.0,108870.0,0.0034]
[1751514917485,0.66553435,108880.0,108870.0,0.0034]
[1751514917707,0.67471843,108880.0,108870.0,0.0034]
[1751514919874,1.18488244,108880.0,108870.0,0.0034]
[1751514920349,1.00119398,108880.0,108870.0,0.0034]
[1751514922788,1.18488244,108880.0,108870.0,0.0034]
[1751514922992,1.17569853,108880.0,108870.0,0.0034]
[1751514923420,0.96010999,108880.0,108870.0,0.0034]
[1751514923621,0.96929441,108880.0,108870.0,0.0034]
[1751514927507,1.14379887,108880.0,108870.0,0.0034]
[1751514928180,1.17469887,108880.0,108870.0,0.0034]
[1751514928582,1.14379887,108880.0,108870.0,0.0034]
[1751514929535,0.96011041,108880.0,108870.0,0.0034]
[1751514930270,0.95092599,108880.0,108870.0,0.0034]
[1751514931035,0.96011041,108880.0,108870.0,0.0034]
[1751514933722,1.14379887,108880.0,108870.0,0.0034]
[1751514936483,1.13461479,108880.0,108870.0,0.0034]
[1751514942150,0.52709721,108880.0,108870.0,0.0034]
[1751514942365,1.13461479,108880.0,108870.0,0.0034]
[1751514943451,0.34316833,108880.0,108870.0,0.0365]
[1751514943665,0.65611086,108880.0,108870.0,0.0365]
[1751514946419,0.64692661,108880.0,108870.0,0.0365]
[1751514946673,0.65611078,108880.0,108870.0,0.0365]
[1751514947310,0.64692661,108880.0,108870.0,0.0365]
[1751514947451,0.65611069,108880.0,108870.0,0.0365]
[1751514947656,0.66529494,108880.0,108870.0,0.0365]
[1751514949269,0.66529494,108880.0,108870.0,0.0335]
[1751514949877,0.96905373,108880.0,108870.0,0.0335]
[1751514950295,0.97823815,108880.0,108870.0,0.0335]
[1751514950538,0.97205373,108880.0,108870.0,0.0345]
[1751514950983,0.98123815,108880.0,108870.0,0.0345]
[1751514951186,0.97205373,108880.0,108870.0,0.0345]
[1751514954589,0.96286948,108880.0,108870.0,0.0345]
[1751514955866,0.65907069,108880.0,108870.0,0.0345]
[1751514956087,0.64988652,108880.0,108870.0,0.0345]
[1751514956967,0.6590706,108880.0,108870.0,0.0345]
[1751514957844,0.64988652,108880.0,108870.0,0.0345]
[1751514958018,0.65907052,108880.0,108870.0,0.0345]
[1751514960865,0.64988652,108880.0,108870.0,0.0345]
[1751514961501,0.65907052,108880.0,108870.0,0.0345]
[1751514964451,0.95364531,108880.0,108870.0,0.0345]
[1751514966924,0.96282939,108880.0,108870.0,0.0345]
[1751514967446,0.9444614,108880.0,108870.0,0.0345]
[1751514967625,0.95364523,108880.0,108870.0,0.0345]